[Event "GER-ch Youth-U10 2022"]
[Site "Willingen"]
[Date "2022.06.08"]
[Round "7.21"]
[White "Hagn, Tobias"]
[Black "Rinke, Alexander"]
[Result "1-0"]
[ECO "B13"]
[WhiteElo "1337"]
[BlackElo "1292"]
[Annotator "NA RC COMBH"]
[PlyCount "69"]
[EventDate "2022.06.05"]
[EventType "swiss"]
[EventRounds "11"]
[EventCountry "GER"]
[SourceTitle "playchess.com"]
[Source "ChessBase"]
[SourceQuality "1"]
[TimeControl "40/4500+30:900+30"]

1. e4 {[%emt 0:00:05]} c6 {[%emt 0:00:03]} 2. d4 {[%emt 0:00:40]} d5 {[%emt 0:00:04]} 3. exd5 {[%emt 0:00:12]} cxd5 {[%emt 0:00:07]} 4. Bd3 {[%emt 0:00:17]} Nc6 {[%emt 0:00:56]} 5. c3 {[%emt 0:00:30]} Nf6 {[%emt 0:00:11]} 6. Bf4 {[%emt 0:00:26]} Bg4 {[%emt 0:00:31]} 7. Qb3 {[%emt 0:00:53]} Qd7 {[%emt 0:02:56]} 8. Nd2 {[%emt 0:02:57]} e6 {[%emt 0:00:26]} 9. h3 {[%emt 0:00:46]} Bh5 {[%emt 0:00:39]} 10. Ngf3 {[%emt 0:01:09]} Be7 {[%emt 0:00:18]} 11. O-O {[%emt 0:02:09]} O-O {[%emt 0:00:30]} 12. Ne5 {[%emt 0:05:40]} Nxe5 {[%emt 0:04:07]} 13. Bxe5 {[%emt 0:00:17]} a6 {[%emt 0:02:55]} 14. Qc2 {[%emt 0:03:24]} Bg6 {[%emt 0:03:52]} 15. Bxg6 {[%emt 0:02:59]} hxg6 {[%emt 0:00:54]} 16. Nf3 {[%emt 0:06:31]} Ne4 {[%emt 0:01:06]} 17. Qd3 {[%emt 0:03:16]} b5 {[%emt 0:05:20]} 18. Bh2 {[%emt 0:07:56]} Rac8 {[%emt 0:05:27]} 19. Ne5 {[%emt 0:00:39]} Qb7 {[%emt 0:01:07]} 20. Rfe1 {[%emt 0:04:19]} b4 {[%emt 0:03:00]} 21. c4 {[%emt 0:01:05]} Kh7 {[%emt 0:02:19]} 22. c5 {[%emt 0:03:50]} Bh4 {[%emt 0:02:15]} 23. g3 {[%emt 0:01:59]} Bf6 {[%emt 0:01:16]} 24. f3 {[%emt 0:05:47]} Ng5 {[%emt 0:06:09]} 25. h4 {[%emt 0:00:57]} Bxe5 {[%emt 0:03:02]} 26. dxe5 {[%emt 0:00:19]} Nxf3+ {[%emt 0:01:02]} 27. Qxf3 {[%emt 0:00:19]} Rxc5 {[%emt 0:00:57]} 28. Rac1 {[%emt 0:02:01]} Rfc8 {[%emt 0:01:13]} 29. Rxc5 {[%emt 0:01:02]} Rxc5 {[%emt 0:00:08]} 30. g4 {[%emt 0:00:35]} Qb6 {[%emt 0:00:35]} 31. Kh1 {[%emt 0:00:50]} Rc2 {[%emt 0:00:58]} 32. h5 {[%emt 0:00:27]} Rxb2 {[%emt 0:01:32]} 33. Qxf7 {[%emt 0:01:14]} gxh5 {[%emt 0:03:41]} 34. g5 {[%emt 0:01:21]} Qf2 {[%emt 0:01:13]} 35. g6+ {[%emt 0:00:16]} 1-0

[Event "GER-ch Youth-U10 2022"]
[Site "Willingen"]
[Date "2022.06.08"]
[Round "7.22"]
[White "Wang, Kaiwen"]
[Black "Schmidt, Jossip"]
[Result "1-0"]
[ECO "B01"]
[WhiteElo "1151"]
[BlackElo "1085"]
[Annotator "NA RC COMBH"]
[PlyCount "75"]
[EventDate "2022.06.05"]
[EventType "swiss"]
[EventRounds "11"]
[EventCountry "GER"]
[SourceTitle "playchess.com"]
[Source "ChessBase"]
[SourceQuality "1"]
[TimeControl "40/4500+30:900+30"]

1. e4 {[%emt 0:00:10]} d5 {[%emt 0:00:16]} 2. exd5 {[%emt 0:00:07]} Qxd5 {[%emt 0:00:06]} 3. Nc3 {[%emt 0:00:07]} Qa5 {[%emt 0:00:04]} 4. Bc4 {[%emt 0:00:12]} c6 {[%emt 0:00:10]} 5. d3 {[%emt 0:00:09]} Nf6 {[%emt 0:00:13]} 6. Bd2 {[%emt 0:00:15]} Qc7 {[%emt 0:00:06]} 7. Qe2 {[%emt 0:00:33]} Bf5 {[%emt 0:00:10]} 8. h3 {[%emt 0:00:37]} e6 {[%emt 0:03:27]} 9. g4 {[%emt 0:01:03]} Bg6 {[%emt 0:00:42]} 10. f4 {[%emt 0:00:32]} h6 {[%emt 0:00:00]} 11. O-O-O {[%emt 0:02:29]} Be7 {[%emt 0:00:59]} 12. Qf3 {[%emt 0:08:56]} Bh7 {[%emt 0:05:39]} 13. Nge2 {[%emt 0:05:37]} Nbd7 {[%emt 0:02:05]} 14. Rdf1 {[%emt 0:05:01]} g6 {[%emt 0:03:36]} 15. Ng3 {[%emt 0:01:45]} Bd6 {[%emt 0:00:14]} 16. Nge4 {[%emt 0:01:23]} Nxe4 {[%emt 0:00:22]} 17. Nxe4 {[%emt 0:04:10]} O-O-O {[%emt 0:02:57]} 18. Nxd6+ {[%emt 0:01:11]} Qxd6 {[%emt 0:00:16]} 19. Qe3 {[%emt 0:00:31]} Qc5 {[%emt 0:02:48]} 20. Qf3 {[%emt 0:03:51]} Rdf8 {[%emt 0:02:31]} 21. a3 {[%emt 0:02:38]} Qd4 {[%emt 0:01:31]} 22. Bc3 {[%emt 0:02:46]} Qc5 {[%emt 0:00:36]} 23. Bxh8 {[%emt 0:00:22]} Rxh8 {[%emt 0:00:15]} 24. Qe4 {[%emt 0:01:56]} g5 {[%emt 0:00:41]} 25. Qe2 {[%emt 0:03:45]} Kb8 {[%emt 0:00:55]} 26. fxg5 {[%emt 0:03:04]} Qxg5+ {[%emt 0:00:25]} 27. Kb1 {[%emt 0:00:28]} Bg6 {[%emt 0:01:05]} 28. h4 {[%emt 0:02:31]} Qe7 {[%emt 0:00:26]} 29. Qe3 {[%emt 0:04:43]} Rh7 {[%emt 0:01:46]} 30. h5 {[%emt 0:00:46]} Bxh5 {[%emt 0:03:54]} 31. Rxh5 {[%emt 0:00:17]} Rg7 {[%emt 0:00:59]} 32. Qg3+ {[%emt 0:01:15]} Ka8 {[%emt 0:00:58]} 33. Rxh6 {[%emt 0:00:22]} a6 {[%emt 0:00:21]} 34. Qc7 {[%emt 0:02:11]} Rg8 {[%emt 0:02:44]} 35. Rh7 {[%emt 0:01:34]} Rf8 {[%emt 0:00:25]} 36. Qf4 {[%emt 0:00:17]} Qc5 {[%emt 0:01:20]} 37. Rxf7 {[%emt 0:00:21]} Rd8 {[%emt 0:00:26]} 38. Qc7 {[%emt 0:00:34]} 1-0

[Event "GER-ch Youth-U10 2022"]
[Site "Willingen"]
[Date "2022.06.08"]
[Round "7.25"]
[White "Classen, Marnin"]
[Black "Leonhardt, Max"]
[Result "1-0"]
[ECO "C92"]
[WhiteElo "1168"]
[BlackElo "1114"]
[Annotator "NA RC COMBH"]
[PlyCount "133"]
[EventDate "2022.06.05"]
[EventType "swiss"]
[EventRounds "11"]
[EventCountry "GER"]
[SourceTitle "playchess.com"]
[Source "ChessBase"]
[SourceQuality "1"]
[TimeControl "40/4500+30:900+30"]

1. e4 {[%emt 0:00:03]} e5 {[%emt 0:00:20]} 2. Nf3 {[%emt 0:00:09]} Nc6 {[%emt 0:00:12]} 3. Bb5 {[%emt 0:00:50]} a6 {[%emt 0:00:18]} 4. Ba4 {[%emt 0:00:23]} Nf6 {[%emt 0:00:15]} 5. O-O {[%emt 0:00:50]} b5 {[%emt 0:01:08]} 6. Bb3 {[%emt 0:00:39]} Be7 {[%emt 0:00:18]} 7. d3 {[%emt 0:00:14]} O-O {[%emt 0:00:19]} 8. h3 {[%emt 0:00:14]} d6 {[%emt 0:00:29]} 9. Re1 {[%emt 0:00:19]} Bb7 {[%emt 0:00:33]} 10. c3 {[%emt 0:00:32]} Na5 {[%emt 0:00:41]} 11. Bc2 {[%emt 0:00:27]} c5 {[%emt 0:00:22]} 12. d4 {[%emt 0:00:31]} cxd4 {[%emt 0:00:53]} 13. cxd4 {[%emt 0:00:25]} exd4 {[%emt 0:00:26]} 14. Nxd4 {[%emt 0:00:29]} h6 {[%emt 0:00:28]} 15. Nd2 {[%emt 0:00:23]} Re8 {[%emt 0:02:17]} 16. Nf1 {[%emt 0:01:15]} Rc8 {[%emt 0:01:04]} 17. Ng3 {[%emt 0:00:15]} Qc7 {[%emt 0:00:26]} 18. Bf4 {[%emt 0:00:52]} Qc5 {[%emt 0:00:27]} 19. Rc1 {[%emt 0:00:39]} Qa7 {[%emt 0:00:45]} 20. Qd2 {[%emt 0:00:28]} Nc6 {[%emt 0:00:19]} 21. Ndf5 {[%emt 0:01:58]} Bf8 {[%emt 0:06:42]} 22. Nxd6 {[%emt 0:01:24]} Bxd6 {[%emt 0:00:10]} 23. Qxd6 {[%emt 0:02:52]} Rcd8 {[%emt 0:00:37]} 24. Qa3 {[%emt 0:01:50]} Ne7 {[%emt 0:01:51]} 25. Bd6 {[%emt 0:03:27]} Ng6 {[%emt 0:00:47]} 26. Bc5 {[%emt 0:03:50]} Qa8 {[%emt 0:00:49]} 27. Qe3 {[%emt 0:01:57]} Nd7 {[%emt 0:01:48]} 28. Bd4 {[%emt 0:00:40]} Nge5 {[%emt 0:00:39]} 29. b3 {[%emt 0:01:06]} Nc6 {[%emt 0:00:44]} 30. Bb2 {[%emt 0:00:22]} Qa7 {[%emt 0:00:40]} 31. Qxa7 {[%emt 0:00:31]} Nxa7 {[%emt 0:00:11]} 32. f3 {[%emt 0:00:16]} Re6 {[%emt 0:00:37]} 33. Nf5 {[%emt 0:00:43]} Nf6 {[%emt 0:01:22]} 34. Rcd1 {[%emt 0:01:33]} Rxd1 {[%emt 0:00:41]} 35. Rxd1 {[%emt 0:00:15]} Bc6 {[%emt 0:01:11]} 36. Nd4 {[%emt 0:00:55]} Rd6 {[%emt 0:00:22]} 37. e5 {[%emt 0:01:03]} Rd8 {[%emt 0:00:49]} 38. exf6 {[%emt 0:01:36]} gxf6 {[%emt 0:00:04]} 39. Nxc6 {[%emt 0:00:15]} Rxd1+ {[%emt 0:00:13]} 40. Bxd1 {[%emt 0:00:16]} Nxc6 {[%emt 0:00:06]} 41. Bxf6 {[%emt 0:15:15]} Nb4 {[%emt 0:15:14]} 42. a3 {[%emt 0:00:31]} Nd5 {[%emt 0:00:15]} 43. Bd4 {[%emt 0:00:29]} a5 {[%emt 0:00:25]} 44. a4 {[%emt 0:00:30]} bxa4 {[%emt 0:00:08]} 45. bxa4 {[%emt 0:00:16]} f5 {[%emt 0:00:12]} 46. Bb3 {[%emt 0:00:09]} f4 {[%emt 0:00:15]} 47. Bxd5+ {[%emt 0:00:12]} Kf8 {[%emt 0:00:19]} 48. Bb6 {[%emt 0:01:04]} h5 {[%emt 0:00:21]} 49. Bxa5 {[%emt 0:00:33]} h4 {[%emt 0:00:06]} 50. Bb6 {[%emt 0:00:08]} Ke7 {[%emt 0:00:12]} 51. Bb7 {[%emt 0:00:33]} Kd6 {[%emt 0:00:17]} 52. a5 {[%emt 0:00:11]} Kd7 {[%emt 0:00:12]} 53. a6 {[%emt 0:00:13]} Ke6 {[%emt 0:00:06]} 54. a7 {[%emt 0:00:17]} Kd7 {[%emt 0:00:14]} 55. a8=Q {[%emt 0:00:16]} Ke7 {[%emt 0:00:07]} 56. Qa3+ {[%emt 0:00:11]} Kd7 {[%emt 0:00:11]} 57. Qd3+ {[%emt 0:00:14]} Ke6 {[%emt 0:00:10]} 58. Qe4+ {[%emt 0:00:10]} Kd6 {[%emt 0:00:10]} 59. Qxf4+ {[%emt 0:00:18]} Ke6 {[%emt 0:00:09]} 60. Qxh4 {[%emt 0:00:12]} Ke5 {[%emt 0:00:12]} 61. Qe4+ {[%emt 0:00:31]} Kd6 {[%emt 0:02:17]} 62. h4 {[%emt 0:05:34]} Kd7 {[%emt 0:00:07]} 63. h5 {[%emt 0:00:20]} Kd6 {[%emt 0:00:05]} 64. h6 {[%emt 0:00:26]} Kd7 {[%emt 0:00:04]} 65. h7 {[%emt 0:00:04]} Kd6 {[%emt 0:00:03]} 66. h8=Q {[%emt 0:00:25]} Kd7 {[%emt 0:00:01]} 67. f4 {[%emt 0:00:19]} 1-0

[Event "GER-ch Youth-U10 2022"]
[Site "Willingen"]
[Date "2022.06.08"]
[Round "7.27"]
[White "Khanbekyan, Aram"]
[Black "Antonius, Richard-Malte"]
[Result "1-0"]
[ECO "B33"]
[WhiteElo "998"]
[BlackElo "1106"]
[Annotator "NA RC COMBH"]
[PlyCount "135"]
[EventDate "2022.06.05"]
[EventType "swiss"]
[EventRounds "11"]
[EventCountry "GER"]
[SourceTitle "playchess.com"]
[Source "ChessBase"]
[SourceQuality "1"]
[TimeControl "40/4500+30:900+30"]

1. e4 {[%emt 0:00:07]} c5 {[%emt 0:00:04]} 2. Nf3 {[%emt 0:00:07]} Nc6 {[%emt 0:00:05]} 3. d4 {[%emt 0:00:09]} cxd4 {[%emt 0:00:05]} 4. Nxd4 {[%emt 0:00:10]} Nf6 {[%emt 0:00:05]} 5. Nc3 {[%emt 0:00:21]} e5 {[%emt 0:00:06]} 6. Ndb5 {[%emt 0:00:31]} d6 {[%emt 0:00:08]} 7. Bg5 {[%emt 0:01:04]} h6 {[%emt 0:00:15]} 8. Bxf6 {[%emt 0:00:57]} Qxf6 {[%emt 0:00:09]} 9. Be2 {[%emt 0:00:33]} Qd8 {[%emt 0:00:09]} 10. O-O {[%emt 0:00:13]} Be6 {[%emt 0:00:06]} 11. Nd5 {[%emt 0:02:30]} Bxd5 {[%emt 0:00:16]} 12. Qxd5 {[%emt 0:00:08]} Qc8 {[%emt 0:01:20]} 13. Qxd6 {[%emt 0:04:01]} Qd8 {[%emt 0:01:00]} 14. Qxd8+ {[%emt 0:01:48]} Rxd8 {[%emt 0:00:09]} 15. Rfd1 {[%emt 0:01:30]} Rxd1+ {[%emt 0:02:05]} 16. Rxd1 {[%emt 0:00:43]} a6 {[%emt 0:00:22]} 17. Nd6+ {[%emt 0:00:59]} Bxd6 {[%emt 0:00:14]} 18. Rxd6 {[%emt 0:00:11]} Nb4 {[%emt 0:00:34]} 19. Rb6 {[%emt 0:00:49]} Nxc2 {[%emt 0:00:18]} 20. Bxa6 {[%emt 0:01:06]} O-O {[%emt 0:01:47]} 21. Rxb7 {[%emt 0:00:00]} Rd8 {[%emt 0:00:55]} 22. h3 {[%emt 0:00:32]} Rd4 {[%emt 0:00:22]} 23. Rc7 {[%emt 0:00:29]} Nb4 {[%emt 0:00:15]} 24. Bc4 {[%emt 0:01:12]} Rxe4 {[%emt 0:00:20]} 25. Bxf7+ {[%emt 0:01:13]} Kf8 {[%emt 0:00:25]} 26. a3 {[%emt 0:02:26]} Na6 {[%emt 0:00:39]} 27. Ra7 {[%emt 0:01:14]} Nc5 {[%emt 0:00:25]} 28. b4 {[%emt 0:00:46]} Re1+ {[%emt 0:00:32]} 29. Kh2 {[%emt 0:00:16]} Nd3 {[%emt 0:01:01]} 30. Bg6 {[%emt 0:01:47]} Nxf2 {[%emt 0:00:26]} 31. Rf7+ {[%emt 0:01:19]} Kg8 {[%emt 0:00:15]} 32. Rxf2 {[%emt 0:01:10]} Ra1 {[%emt 0:00:08]} 33. Rd2 {[%emt 0:00:22]} Kf8 {[%emt 0:00:08]} 34. Rd8+ {[%emt 0:00:24]} Ke7 {[%emt 0:00:04]} 35. Ra8 {[%emt 0:00:34]} Kf6 {[%emt 0:00:06]} 36. Be4 {[%emt 0:00:20]} Re1 {[%emt 0:00:08]} 37. Bf3 {[%emt 0:00:24]} e4 {[%emt 0:00:09]} 38. Bg4 {[%emt 0:00:19]} e3 {[%emt 0:00:26]} 39. Kg3 {[%emt 0:01:04]} Rb1 {[%emt 0:00:59]} 40. Rb8 {[%emt 0:03:40]} Ra1 {[%emt 0:04:36]} 41. b5 {[%emt 0:15:29]} Rxa3 {[%emt 0:15:35]} 42. b6 {[%emt 0:00:03]} Rb3 {[%emt 0:00:08]} 43. b7 {[%emt 0:00:09]} Kg6 {[%emt 0:00:09]} 44. Bf5+ {[%emt 0:00:35]} Kxf5 {[%emt 0:00:09]} 45. Rf8+ {[%emt 0:00:09]} Kg6 {[%emt 0:01:10]} 46. b8=Q {[%emt 0:00:09]} Rxb8 {[%emt 0:00:34]} 47. Rxb8 {[%emt 0:00:09]} Kg5 {[%emt 0:01:53]} 48. Rg8 {[%emt 0:01:00]} Kg6 {[%emt 0:00:09]} 49. Kf3 {[%emt 0:00:13]} Kf7 {[%emt 0:00:11]} 50. Ra8 {[%emt 0:00:15]} h5 {[%emt 0:00:19]} 51. Kxe3 {[%emt 0:00:07]} g6 {[%emt 0:00:13]} 52. g4 {[%emt 0:01:11]} h4 {[%emt 0:00:30]} 53. Rh8 {[%emt 0:00:13]} g5 {[%emt 0:00:08]} 54. Rd8 {[%emt 0:00:32]} Kf6 {[%emt 0:00:12]} 55. Re8 {[%emt 0:00:18]} Kf7 {[%emt 0:00:07]} 56. Re4 {[%emt 0:00:20]} Kf6 {[%emt 0:00:06]} 57. Kd4 {[%emt 0:00:16]} Kf7 {[%emt 0:00:11]} 58. Re1 {[%emt 0:02:45]} Kf6 {[%emt 0:00:27]} 59. Kd5 {[%emt 0:00:18]} Kf7 {[%emt 0:00:10]} 60. Kd6 {[%emt 0:00:26]} Kf8 {[%emt 0:00:09]} 61. Kd7 {[%emt 0:00:11]} Kf7 {[%emt 0:00:04]} 62. Rf1+ {[%emt 0:00:13]} Kg6 {[%emt 0:00:15]} 63. Ke7 {[%emt 0:00:17]} Kg7 {[%emt 0:00:05]} 64. Rf6 {[%emt 0:00:54]} Kg8 {[%emt 0:00:10]} 65. Rg6+ {[%emt 0:00:33]} Kh8 {[%emt 0:00:23]} 66. Kf7 {[%emt 0:00:31]} Kh7 {[%emt 0:00:10]} 67. Rg8 {[%emt 0:00:41]} Kh6 {[%emt 0:00:11]} 68. Rh8# {[%emt 0:00:07]} 1-0

[Event "GER-ch Youth-U10 2022"]
[Site "Willingen"]
[Date "2022.06.09"]
[Round "8.1"]
[White "Nezhyvenko, Mykhaylo"]
[Black "Campora, Daniel H."]
[Result "1-0"]
[ECO "B33"]
[WhiteElo "1488"]
[BlackElo "2397"]
[Annotator "TA"]
[PlyCount "89"]
[EventDate "2022.06.05"]
[EventType "swiss"]
[EventRounds "11"]
[EventCountry "GER"]
[SourceTitle "playchess.com"]
[Source "ChessBase"]
[SourceQuality "1"]
[TimeControl "40/4500+30:900+30"]

{[%evp 15,89,9,22,-29,4,-88,16,-18,-12,-36,45,49,45,17,20,-43,-30,-110,-108,-108,-100,-98,-59,-83,-49,-35,16,21,4,14,32,10,4,0,0,0,30,0,0,5,51,48,75,66,78,70,92,71,76,0,33,29,59,54,93,0,0,0,0,0,0,0,0,0,0,0,0,0,0,0,160,145,172,65,12832,12747]} 1. e4 {[%emt 0:00:01]} c5 {[%emt 0:00:07]} 2. Nf3 {[%emt 0:00:03][%cal Bg1f3,Bf3d4,Bd4b5][%mdl 32]} Nc6 {[%emt 0:00:13]} 3. d4 {[%emt 0:00:03]} cxd4 {[%emt 0:00:20]} 4. Nxd4 {[%emt 0:00:01]} e5 {[%emt 0:00:19]} 5. Nb5 {[%emt 0:00:04]} d6 {[%emt 0:00:22]} 6. N1c3 {[%emt 0:00:08]} a6 {[%emt 0:00:33]} 7. Na3 {[%emt 0:00:01]} Be6 {[%emt 0:00:24]} 8. Be3 {[%emt 0:01:19]} Nf6 {[%emt 0:01:12]} 9. Be2 {[%emt 0:00:53] B33: Sicilian: Pelikan and Sveshnikov Variations.} (9. Nc4 $142) 9... Be7 {[%emt 0:00:51]} 10. Nd5 {[%emt 0:00:39]} (10. Nc4 $11) 10... O-O {[%emt 0:02:24]} ({Don't take} 10... Nxe4 11. Bb6 Qc8 12. Nc7+ Kf8 13. Nxa8 Qxa8 14. Bc4 $14) (10... Nxd5 $17 11. exd5 Qa5+ 12. c3 Qxd5 13. Qxd5 Bxd5) 11. Nxf6+ {[%emt 0:01:51] The position is equal.} Bxf6 {[%emt 0:00:21]} 12. Nc4 {[%emt 0:00:12] [#]} Bxc4 $146 {[%emt 0:01:05]} (12... Nd4 $15) ({Predecessor:} 12... Be7 13. O-O f5 14. exf5 Bxf5 15. Bd3 Rb8 16. Bb6 Qd7 17. Bxf5 Rxf5 18. Bc5 Rf6 {0-1 (27) Pozo Vinuesa,A (1414)-Paz Mendez,G Tenerife 2013}) 13. Bxc4 $14 {[%emt 0:00:03]} Bg5 {[%emt 0:02:03]} 14. Qd2 {[%emt 0:01:21]} Bxe3 {[%emt 0:00:55]} 15. fxe3 {[%emt 0:00:01]} (15. Qxe3 $11 Nd4 16. Qd3) 15... Qh4+ $15 {[%emt 0:00:25]} 16. Qf2 {[%emt 0:00:32]} (16. g3 $11 {keeps the balance.} Qxe4 17. Bd5) 16... Qxe4 $17 {[%emt 0:01:54]} 17. Bd3 {[%emt 0:00:05]} Qg4 {[%emt 0:01:08]} 18. h3 {[%emt 0:01:53]} Qg5 {[%emt 0:01:11][%cal Oe5e4]} 19. O-O-O {[%emt 0:00:56]} Rac8 {[%emt 0:00:55]} 20. Bf5 {[%emt 0:01:25]} Rc7 {[%emt 0:00:29]} (20... Rcd8 $15) 21. Rxd6 $11 {[%emt 0:03:54]} g6 {[%emt 0:01:11]} 22. Be4 {[%emt 0:02:13]} Rfc8 {[%emt 0:04:28]} 23. Kb1 {[%emt 0:05:37]} Qe7 {[%emt 0:03:16]} 24. Rd2 {[%emt 0:04:55]} Na5 {[%emt 0:03:25]} 25. Bd5 {[%emt 0:00:31]} b5 {[%emt 0:00:46]} 26. Rhd1 {[%emt 0:00:24]} Nc4 {[%emt 0:01:07]} 27. Bxc4 {[%emt 0:00:01]} bxc4 {[%emt 0:00:17]} (27... Rxc4 $11 {deserves consideration.} 28. g4 b4) 28. c3 $14 {[%emt 0:00:02]} a5 {[%emt 0:00:18]} 29. Rd5 {[%emt 0:06:10]} Ra7 {[%emt 0:02:21]} 30. Qg3 {[%emt 0:01:40]} Rc5 {[%emt 0:01:48]} 31. Rd8+ {[%emt 0:05:38]} Kg7 {[%emt 0:00:19]} 32. Qg4 {[%emt 0:00:01]} (32. a4 $16) 32... f5 {[%emt 0:01:45]} 33. Qf3 {[%emt 0:00:04]} e4 {[%emt 0:01:37]} 34. Qf4 {[%emt 0:00:18]} Rcc7 {[%emt 0:02:16]} 35. g4 {[%emt 0:01:18] White is much more active.} ({White should try} 35. R1d4 $16) 35... Rd7 $11 {[%emt 0:01:19]} 36. R8xd7 {[%emt 0:17:27] Chess con chili.} Rxd7 {[%emt 0:00:17][%mdl 4096] Endgame KQR-KQR} 37. Rf1 {[%emt 0:06:14]} Rd5 {[%emt 0:00:40]} 38. Kc1 {[%emt 0:02:29]} a4 {[%emt 0:01:30]} 39. a3 {[%emt 0:02:03]} Qd7 {[%emt 0:02:58]} 40. Qf2 {[%emt 0:03:41]} Rb5 {[%emt 0:06:11]} 41. h4 {[%emt 0:15:40]} Qf7 {[%emt 0:17:21]} 42. h5 {[%emt 0:00:21] Threatens to win with hxg6.} Rd5 $2 {[%emt 0:02:53] [#]} (42... g5 $1 $11) 43. hxg6 $1 $16 {[%emt 0:01:42]} hxg6 {[%emt 0:01:32]} 44. Qh4 {[%emt 0:00:11]} ({White should play} 44. Rh1 $18) 44... Rd8 $2 {[%emt 0:08:46][%mdl 8192]} 45. Qxd8 {[%emt 0:00:08] Weighted Error Value: White=0.23 (precise) /Black=0.33} 1-0

[Event "GER-ch Youth-U10 2022"]
[Site "Willingen"]
[Date "2022.06.09"]
[Round "8.2"]
[White "Bundan, Edward"]
[Black "Zhang, Yibo"]
[Result "0-1"]
[ECO "C54"]
[WhiteElo "1240"]
[BlackElo "1436"]
[Annotator "NA RC COMBH"]
[PlyCount "118"]
[EventDate "2022.06.05"]
[EventType "swiss"]
[EventRounds "11"]
[EventCountry "GER"]
[SourceTitle "playchess.com"]
[Source "ChessBase"]
[SourceQuality "1"]
[TimeControl "40/4500+30:900+30"]

1. e4 {[%emt 0:00:02]} e5 {[%emt 0:00:04]} 2. Nf3 {[%emt 0:00:03]} Nc6 {[%emt 0:00:12]} 3. Bc4 {[%emt 0:00:05]} Bc5 {[%emt 0:00:06]} 4. c3 {[%emt 0:00:20]} Nf6 {[%emt 0:00:07]} 5. d3 {[%emt 0:00:14]} a6 {[%emt 0:00:03]} 6. h3 {[%emt 0:00:29]} Ba7 {[%emt 0:00:27]} 7. Bb3 {[%emt 0:00:23]} d6 {[%emt 0:00:40]} 8. Nbd2 {[%emt 0:00:34]} Be6 {[%emt 0:00:50]} 9. Nf1 {[%emt 0:01:17]} Qd7 {[%emt 0:01:22]} 10. Bg5 {[%emt 0:01:12]} O-O-O {[%emt 0:01:31]} 11. Qc2 {[%emt 0:02:31]} h6 {[%emt 0:01:34]} 12. Bxf6 {[%emt 0:04:14]} gxf6 {[%emt 0:01:24]} 13. Ng3 {[%emt 0:02:06]} d5 {[%emt 0:02:25]} 14. O-O-O {[%emt 0:05:57]} Na5 {[%emt 0:02:44]} 15. Rhf1 {[%emt 0:04:38]} Nxb3+ {[%emt 0:01:18]} 16. axb3 {[%emt 0:00:24]} Rhg8 {[%emt 0:04:48]} 17. Kb1 {[%emt 0:05:47]} Qe7 {[%emt 0:02:37]} 18. Nh4 {[%emt 0:05:49]} dxe4 {[%emt 0:02:47]} 19. dxe4 {[%emt 0:01:52]} Qc5 {[%emt 0:01:46]} 20. Nh5 {[%emt 0:17:33]} Rxd1+ {[%emt 0:05:32]} 21. Qxd1 {[%emt 0:05:11]} Rd8 {[%emt 0:05:20]} 22. Qc2 {[%emt 0:01:57]} Qb5 {[%emt 0:01:20]} 23. c4 {[%emt 0:00:47]} Qb4 {[%emt 0:05:45]} 24. Nf3 {[%emt 0:05:03]} Qe7 {[%emt 0:20:38]} 25. g4 {[%emt 0:01:06]} Rd7 {[%emt 0:02:02]} 26. Rg1 {[%emt 0:03:19]} Qd8 {[%emt 0:00:56]} 27. Rg3 {[%emt 0:00:54]} c6 {[%emt 0:01:54]} 28. Rg1 {[%emt 0:01:09]} Kb8 {[%emt 0:00:40]} 29. Ka2 {[%emt 0:01:02]} b5 {[%emt 0:01:23]} 30. Rc1 {[%emt 0:02:37]} Rd3 {[%emt 0:01:51]} 31. Ng1 {[%emt 0:02:23]} Rd2 {[%emt 0:00:41]} 32. Qc3 {[%emt 0:00:52]} Rxf2 {[%emt 0:00:35]} 33. cxb5 {[%emt 0:00:58]} cxb5 {[%emt 0:00:29]} 34. Qc6 {[%emt 0:00:59]} Bd4 {[%emt 0:01:20]} 35. Rc2 {[%emt 0:04:15]} Rxc2 {[%emt 0:01:27]} 36. Qxc2 {[%emt 0:00:10]} Bxg1 {[%emt 0:00:07]} 37. Qc6 {[%emt 0:00:45]} Qd7 {[%emt 0:01:57]} 38. Qxa6 {[%emt 0:01:14]} Qa7 {[%emt 0:00:21]} 39. Qxa7+ {[%emt 0:00:06]} Kxa7 {[%emt 0:00:12]} 40. Nxf6 {[%emt 0:00:10]} b4 {[%emt 0:00:16]} 41. Nh5 {[%emt 0:15:56]} Kb6 {[%emt 0:15:42]} 42. Ng3 {[%emt 0:01:17]} Kc5 {[%emt 0:00:36]} 43. Ne2 {[%emt 0:00:20]} Bf2 {[%emt 0:00:12]} 44. Kb1 {[%emt 0:01:00]} Bxb3 {[%emt 0:00:18]} 45. Nc1 {[%emt 0:00:43]} Bc4 {[%emt 0:00:05]} 46. b3 {[%emt 0:00:12]} Bb5 {[%emt 0:00:05]} 47. Kc2 {[%emt 0:00:19]} Kd4 {[%emt 0:00:26]} 48. Na2 {[%emt 0:00:32]} Be1 {[%emt 0:00:16]} 49. Kd1 {[%emt 0:00:28]} Bc3 {[%emt 0:00:06]} 50. Kc2 {[%emt 0:00:11]} Bd3+ {[%emt 0:00:16]} 51. Kd1 {[%emt 0:00:18]} Kxe4 {[%emt 0:00:20]} 52. h4 {[%emt 0:00:16]} Kf4 {[%emt 0:00:26]} 53. g5 {[%emt 0:00:20]} e4 {[%emt 0:00:15]} 54. gxh6 {[%emt 0:00:11]} e3 {[%emt 0:00:04]} 55. Nxc3 {[%emt 0:00:10]} bxc3 {[%emt 0:00:05]} 56. b4 {[%emt 0:00:26]} e2+ {[%emt 0:00:08]} 57. Ke1 {[%emt 0:00:22]} Ke3 {[%emt 0:00:19]} 58. h7 {[%emt 0:00:22]} Bxh7 {[%emt 0:00:13]} 59. b5 {[%emt 0:00:20]} c2 {[%emt 0:00:05]} 0-1

[Event "GER-ch Youth-U10 2022"]
[Site "Willingen"]
[Date "2022.06.09"]
[Round "8.3"]
[White "Kateryniuk, Ivan"]
[Black "Dotschuweit, Erik"]
[Result "0-1"]
[ECO "C45"]
[WhiteElo "1187"]
[BlackElo "1323"]
[Annotator "NA RC COMBH"]
[PlyCount "48"]
[EventDate "2022.06.05"]
[EventType "swiss"]
[EventRounds "11"]
[EventCountry "GER"]
[SourceTitle "playchess.com"]
[Source "ChessBase"]
[SourceQuality "1"]
[TimeControl "40/4500+30:900+30"]

1. e4 {[%emt 0:00:04]} e5 {[%emt 0:00:10]} 2. Nf3 {[%emt 0:00:08]} Nc6 {[%emt 0:00:22]} 3. d4 {[%emt 0:00:05]} exd4 {[%emt 0:00:18]} 4. Nxd4 {[%emt 0:00:07]} Bc5 {[%emt 0:00:28]} 5. Be3 {[%emt 0:00:08]} Qf6 {[%emt 0:00:17]} 6. Nb5 {[%emt 0:00:16]} Bxe3 {[%emt 0:00:23]} 7. fxe3 {[%emt 0:00:09]} Qh4+ {[%emt 0:00:08]} 8. g3 {[%emt 0:00:07]} Qd8 {[%emt 0:00:07]} 9. Qg4 {[%emt 0:00:30]} g6 {[%emt 0:00:17]} 10. Qf4 {[%emt 0:00:08]} d6 {[%emt 0:00:46]} 11. Bc4 {[%emt 0:00:07]} Ne5 {[%emt 0:00:32]} 12. O-O {[%emt 0:00:38]} Bh3 {[%emt 0:00:22]} 13. Bxf7+ {[%emt 0:00:25]} Kd7 {[%emt 0:01:22]} 14. Rf2 {[%emt 0:05:19]} g5 {[%emt 0:00:46]} 15. Qxe5 {[%emt 0:04:53]} dxe5 {[%emt 0:02:26]} 16. Rd2+ {[%emt 0:00:03]} Ke7 {[%emt 0:01:18]} 17. Rxd8 {[%emt 0:00:22]} Rxd8 {[%emt 0:00:37]} 18. Bc4 {[%emt 0:00:24]} Rd1+ {[%emt 0:00:37]} 19. Kf2 {[%emt 0:00:38]} Nh6 {[%emt 0:00:30]} 20. Ke2 {[%emt 0:06:31]} Bg4+ {[%emt 0:02:39]} 21. Kf2 {[%emt 0:00:12]} Rf8+ {[%emt 0:02:48]} 22. Kg2 {[%emt 0:00:06]} Bf3+ {[%emt 0:00:43]} 23. Kh3 {[%emt 0:00:12]} Rh1 {[%emt 0:00:30]} 24. g4 {[%emt 0:07:22]} Rg1 {[%emt 0:00:56]} 0-1